{"text_format":"1","workbook":"xlsx","n_sheets":16,"sheets":["GİRİŞ","yardım","vt1","TaslakProgr.","yazdır5","yazdır10","yazdır15","xx5","xx10","xx15","yönetim","nöbetyerleri","öğretmenler","dersdoldur","gözetmen","Sayfa1"],"not_rendered":{"charts":0,"images":11,"macros":1,"external_links":29,"defined_names":1382,"comments":2,"pivot_tables":0},"unopened":[{"sheet":"yardım","index":1,"reason":"not_a_worksheet"},{"sheet":"xx5","index":7,"reason":"not_a_worksheet"},{"sheet":"xx10","index":8,"reason":"not_a_worksheet"},{"sheet":"xx15","index":9,"reason":"not_a_worksheet"}],"bounds":{"document_bytes":16777216,"sheet_cells":100000,"rows_first":2000,"rows_last":500,"rows_between":2000,"halvings":0,"cell_chars":16384,"cell_head_chars":4096},"cells_cut":0,"cells_raw":0,"read":"whole","date_system":"1900"}

{"sheet":"GİRİŞ","index":0,"n_rows":18,"n_cols":26,"rows_kept":18,"cut":false,"hidden":false,"merged":[[4,25,6,28],[12,1,12,6],[12,8,12,9],[12,10,12,11],[12,12,12,13],[12,14,12,15],[12,16,12,17],[12,18,12,20],[12,21,12,23],[4,1,4,6],[4,8,4,21],[6,1,6,6],[6,8,6,21],[10,1,10,6],[8,1,8,6],[10,13,10,19],[17,15,17,20]]}
[6]
[8]
[null,"AYLIK NÖBET ÇİZELGESİ PROGRAMI",null,null,null,null,null,null,null,null,null,null,null,null,null,null,null,null,null,null,null,"nobet22.02",null,null,"KURUMUN LOGOSU 1"]
[]
[null,"Kurumun Resmi Adı",null,null,null,null,null,"seay","ÖZEL ÜSKÜDAR SINAV KİŞİSEL GELİŞİM KURSU",null,null,null,null,null,null,null,null,null,null,null,null,null,null,null,null,"Taşmadan Yerleştiriniz"]
[]
[null,"Nöbet Çizelgesi Başlığı",null,null,null,null,null,null,"SINAV KİŞİSEL GELİŞİM KURSU AYLIK NÖBET ÇİZELGESİ"]
[]
[null,"Program Başlama Tarihi",null,null,null,null,null,null,null,null,null,null,null,null,null,null,null,null,null,null,null,null,null,null,"Çizgi dışına taşırmadan yerleştiriniz"]
[]
[null,"Öğretmenlerin Aynı Gün İçindeki Nöbet Süreci",null,null,null,null,null,null,"Tüm Gün",null,null,1,null,"Sabah veya Öğlen Yarımşar Gün"]
[]
[null,"Kurumda Ders Yapılan Günler",null,null,null,null,null,null,"Pazartesi",null,"Salı",null,"Çarşamba",null,"Perşembe",null,"Cuma",null,"Etüt/Deneme",null,null,"Ders Yok"]
[null,null,null,null,null,null,null,null,"Ders yapılan günleri yazmak çin hücrelerdeki AÇILAN LİSTEYİ kullanabilirsiniz."]
[]
[]
["Önerilerinizi, eleştirilerinizi, değişikliklik isteklerinizi yazabilirsiniz: seferyuruk@hotmail.com"]
[null,null,null,null,null,null,null,null,null,null,null,null,"Daha fazlası:",null,null,"www.iyiorneklerlisesi.com"]

{"sheet":"vt1","index":2,"n_rows":40,"n_cols":21,"rows_kept":40,"cut":false,"hidden":true,"merged":[[1,17,1,18],[27,2,27,4]]}
[null,null,"NÖBET GÖREV SAYILARI",null,null,null,null,null,null,null,20,6,3,7,null,null,null,{"$f":"INDEX(S3:S19,$S$1)","v":10},{"$f":"COUNTA(Tablo2[Nöbet Yeri Tanımı])","v":10}]
[null,null,"ÖĞRETMEN","Nöbet Sayısı",null,"Verilen Nöbet Toplamı",{"$f":"SUM(D3:D27)+SUM(G3:G27)","v":25},null,{"$f":"INDEX(I3:I40,GİRİŞ!$A$2)","v":"2022-06-28"},null,{"$f":"INDEX(K4:K34,K1)","v":20},{"$f":"INDEX(L4:L15,L1)","v":"Haziran"},{"$f":"INDEX(M5:M13,M1)","v":2022},{"$f":"INDEX(N4:N13,N1)","v":"Pazar"},null,"NÖBET SÜRECİ",null,"NÖBET YERİ SAYISI",null,null,"YÖNETİM KADROSU"]
[null,1,{"$f":"öğretmenler!G5","v":"Y.Sümeyye  Tari"},{"$f":"IF(öğretmenler!H5=0,\"\",öğretmenler!H5)","v":1},26,{"$f":"öğretmenler!G30","v":"Z.Eymen  Biyo"},{"$f":"IF(öğretmenler!H30=0,\"\",öğretmenler!H30)","v":""},1,{"$f":"I4-1","v":"2022-06-21"},null,"GÜNLER","AYLAR","YILLAR","HAFTA",null,"TAM GÜN",null,1,5,null,"Müdür"]
[null,2,{"$f":"öğretmenler!G6","v":"E.Beyza  Coğr"},{"$f":"IF(öğretmenler!H6=0,\"\",öğretmenler!H6)","v":1},27,{"$f":"öğretmenler!G31","v":"E.Burak  Türk"},{"$f":"IF(öğretmenler!H31=0,\"\",öğretmenler!H31)","v":1},2,"2022-06-22",null,1,"Ocak",{"$f":"YEAR(TODAY())","v":2022},"Pazartesi",null,"YARIM GÜN",null,2,5,null,"Müdür Baş Yardımcısı"]
[null,3,{"$f":"öğretmenler!G7","v":"M.Esma  Fizi"},{"$f":"IF(öğretmenler!H7=0,\"\",öğretmenler!H7)","v":1},28,{"$f":"öğretmenler!G32","v":"Y.Zeynep  TDE"},{"$f":"IF(öğretmenler!H32=0,\"\",öğretmenler!H32)","v":""},3,"2022-06-23",null,2,"Şubat",{"$f":"M4-2","v":2020},"Salı",null,"SABAH / ÖĞLEN",null,3,5,null,"Müdür Yardımcısı 1"]
[null,4,{"$f":"öğretmenler!G8","v":"Ö.Yusuf  Kimy"},{"$f":"IF(öğretmenler!H8=0,\"\",öğretmenler!H8)","v":6},29,{"$f":"öğretmenler!G33","v":"Z.Elif  Müzi"},{"$f":"IF(öğretmenler!H33=0,\"\",öğretmenler!H33)","v":1},4,"2022-06-24",null,3,"Mart",{"$f":"M5+1","v":2021},"Çarşamba",null,"Sadece SABAH",null,4,5,null,"Müdür Yardımcısı 2"]
[null,5,{"$f":"öğretmenler!G9","v":"Ö.Mustafa  Mate"},{"$f":"IF(öğretmenler!H9=0,\"\",öğretmenler!H9)","v":1},30,{"$f":"öğretmenler!G34","v":"E.Defne  Resi"},{"$f":"IF(öğretmenler!H34=0,\"\",öğretmenler!H34)","v":""},5,"2022-06-25",null,4,"Nisan",{"$f":"M6+1","v":2022},"Perşembe",null,"Sadece ÖĞLEN",null,5,5,null,"Müdür Yardımcısı 3"]
[null,6,{"$f":"öğretmenler!G10","v":"M.Mehmet  matT"},{"$f":"IF(öğretmenler!H10=0,\"\",öğretmenler!H10)","v":1},31,{"$f":"öğretmenler!G35","v":"M.Asel  İngi"},{"$f":"IF(öğretmenler!H35=0,\"\",öğretmenler!H35)","v":""},6,"2022-06-26",null,5,"Mayıs",2023,"Cuma",null,null,null,6,5,null,"Yerleşke Müdürü"]
[null,7,{"$f":"öğretmenler!G11","v":"K.Ahmet  matA"},{"$f":"IF(öğretmenler!H11=0,\"\",öğretmenler!H11)","v":2},32,{"$f":"öğretmenler!G36","v":"İ.Azra  Alma"},{"$f":"IF(öğretmenler!H36=0,\"\",öğretmenler!H36)","v":1},7,{"$f":"I10-1","v":"2022-06-27"},null,6,"Haziran",2024,"Cumartesi",null,{"$f":"IF(GİRİŞ!$L$11=2,\"TAM\",IF(GİRİŞ!$L$11=1,\"SABAH\"))","v":"SABAH"},null,7,10,null,"Koordinatör"]
[null,8,{"$f":"öğretmenler!G12","v":"M.Ömer  Sosy"},{"$f":"IF(öğretmenler!H12=0,\"\",öğretmenler!H12)","v":""},33,{"$f":"öğretmenler!G37","v":"F.Eylül  Mate"},{"$f":"IF(öğretmenler!H37=0,\"\",öğretmenler!H37)","v":""},8,{"$f":"TODAY()","v":"2022-06-28"},null,7,"Temmuz",2025,"Pazar",null,{"$f":"IF(GİRİŞ!$L$11=2,\"GÜN\",IF(GİRİŞ!$L$11=1,\"ÖĞLEN\"))","v":"ÖĞLEN"},null,8,10,null,"PDR (Rehberlik)"]
[null,9,{"$f":"öğretmenler!G13","v":"H.Berat  Fen "},{"$f":"IF(öğretmenler!H13=0,\"\",öğretmenler!H13)","v":""},34,{"$f":"öğretmenler!G38","v":"M.Ebrar  matT"},{"$f":"IF(öğretmenler!H38=0,\"\",öğretmenler!H38)","v":""},9,{"$f":"I10+1","v":"2022-06-29"},null,8,"Ağustos",2026,"Etüt/Deneme",null,null,null,9,10,null,"(Diğer)"]
[null,10,{"$f":"öğretmenler!G14","v":"A.Muhamme  Biyo"},{"$f":"IF(öğretmenler!H14=0,\"\",öğretmenler!H14)","v":""},35,{"$f":"öğretmenler!G39","v":"A.Asya  matA"},{"$f":"IF(öğretmenler!H39=0,\"\",öğretmenler!H39)","v":1},10,{"$f":"I11+1","v":"2022-06-30"},null,9,"Eylül",2027,"Ders Yok",null,null,null,10,10]
[null,11,{"$f":"öğretmenler!G15","v":"M.Furkan  Türk"},{"$f":"IF(öğretmenler!H15=0,\"\",öğretmenler!H15)","v":""},36,{"$f":"öğretmenler!G40","v":"R.Öykü  Mate"},{"$f":"IF(öğretmenler!H40=0,\"\",öğretmenler!H40)","v":""},11,"2022-07-01",null,10,"Ekim",2028,null,null,null,null,11,10]
[null,12,{"$f":"öğretmenler!G16","v":"A.Emirhan  TDE"},{"$f":"IF(öğretmenler!H16=0,\"\",öğretmenler!H16)","v":1},37,{"$f":"öğretmenler!G41","v":"E.Ecrin  matT"},{"$f":"IF(öğretmenler!H41=0,\"\",öğretmenler!H41)","v":""},12,"2022-07-02",null,11,"Kasım",null,null,null,null,null,12,15]
[null,13,{"$f":"öğretmenler!G17","v":"E.Enes  Müzi"},{"$f":"IF(öğretmenler!H17=0,\"\",öğretmenler!H17)","v":""},38,{"$f":"öğretmenler!G42","v":"B.Hiranur  matA"},{"$f":"IF(öğretmenler!H42=0,\"\",öğretmenler!H42)","v":""},13,"2022-07-03",null,12,"Aralık",null,null,null,null,null,13,15]
[null,14,{"$f":"öğretmenler!G18","v":"A.Ali  Resi"},{"$f":"IF(öğretmenler!H18=0,\"\",öğretmenler!H18)","v":1},39,{"$f":"öğretmenler!G43","v":"N.Meryem  Türk"},{"$f":"IF(öğretmenler!H43=0,\"\",öğretmenler!H43)","v":""},14,"2022-07-04",null,13,null,null,null,null,null,null,14,15]
[null,15,{"$f":"öğretmenler!G19","v":"M.Arda  İngi"},{"$f":"IF(öğretmenler!H19=0,\"\",öğretmenler!H19)","v":""},40,{"$f":"öğretmenler!G44","v":"A.Miray  TDE"},{"$f":"IF(öğretmenler!H44=0,\"\",öğretmenler!H44)","v":""},15,"2022-07-05",null,14,{"$f":"'vt1'!I2","v":"2022-06-28"},null,null,null,null,null,15,15]
[null,16,{"$f":"öğretmenler!G20","v":"Y.İbrahim  Alma"},{"$f":"IF(öğretmenler!H20=0,\"\",öğretmenler!H20)","v":""},41,{"$f":"öğretmenler!G45","v":"H.Duru  Türk"},{"$f":"IF(öğretmenler!H45=0,\"\",öğretmenler!H45)","v":""},16,"2022-07-06",null,15]
[null,17,{"$f":"öğretmenler!G21","v":"M.Hüseyin  Tari"},{"$f":"IF(öğretmenler!H21=0,\"\",öğretmenler!H21)","v":""},42,{"$f":"öğretmenler!G46","v":"N.Zehra  TDE"},{"$f":"IF(öğretmenler!H46=0,\"\",öğretmenler!H46)","v":""},17,"2022-07-07",null,16,"Ayın Günü",{"$f":"DAY(L17)","v":28}]
[null,18,{"$f":"öğretmenler!G22","v":"A.Emir  Coğr"},{"$f":"IF(öğretmenler!H22=0,\"\",öğretmenler!H22)","v":""},43,{"$f":"öğretmenler!G47","v":"H.Eşlem  Sosy"},{"$f":"IF(öğretmenler!H47=0,\"\",öğretmenler!H47)","v":""},18,"2022-07-08",null,17,"GÜNLER",{"$f":"WEEKDAY(L17)","v":3}]
[null,19,{"$f":"öğretmenler!G23","v":"Ç.Yunus E  Fizi"},{"$f":"IF(öğretmenler!H23=0,\"\",öğretmenler!H23)","v":""},44,{"$f":"öğretmenler!G48","v":"E.Nehir  Fen "},{"$f":"IF(öğretmenler!H48=0,\"\",öğretmenler!H48)","v":""},19,"2022-07-09",null,18]
[null,20,{"$f":"öğretmenler!G24","v":"A.Emre  Kimy"},{"$f":"IF(öğretmenler!H24=0,\"\",öğretmenler!H24)","v":""},45,{"$f":"öğretmenler!G49","v":"D.Zümra  Sosy"},{"$f":"IF(öğretmenler!H49=0,\"\",öğretmenler!H49)","v":""},20,"2022-07-10",null,19,"AYLAR",{"$f":"MONTH(L17)","v":6}]
[null,21,{"$f":"öğretmenler!G25","v":"U.Mert  Mate"},{"$f":"IF(öğretmenler!H25=0,\"\",öğretmenler!H25)","v":2},46,{"$f":"öğretmenler!G50","v":"K.Yağmur  Fen "},{"$f":"IF(öğretmenler!H50=0,\"\",öğretmenler!H50)","v":3},21,"2022-07-11",null,20,null,null,{"$f":"INDEX(N4:N13,M20)","v":"Çarşamba"}]
[null,22,{"$f":"öğretmenler!G26","v":"A.Haşan  matT"},{"$f":"IF(öğretmenler!H26=0,\"\",öğretmenler!H26)","v":""},47,{"$f":"öğretmenler!G51","v":"L.İkra  İngi"},{"$f":"IF(öğretmenler!H51=0,\"\",öğretmenler!H51)","v":""},22,"2022-07-12",null,21,"YILLAR",{"$f":"YEAR(L17)","v":2022}]
[null,23,{"$f":"öğretmenler!G27","v":"A.Kerem  matA"},{"$f":"IF(öğretmenler!H27=0,\"\",öğretmenler!H27)","v":""},48,{"$f":"öğretmenler!G52","v":"A.Ela  İngi"},{"$f":"IF(öğretmenler!H52=0,\"\",öğretmenler!H52)","v":""},23,"2022-07-13",null,22,null,null,{"$f":"INDEX(L4:L15,M22)","v":"Haziran"}]
[null,24,{"$f":"öğretmenler!G28","v":"B.Eren  Sosy"},{"$f":"IF(öğretmenler!H28=0,\"\",öğretmenler!H28)","v":1},49,{"$f":"öğretmenler!G53","v":"H.Lina  Türk"},{"$f":"IF(öğretmenler!H53=0,\"\",öğretmenler!H53)","v":""},24,"2022-07-14",null,23,"HAFTA",{"$f":"WEEKNUM(L17)","v":27}]
[null,25,{"$f":"öğretmenler!G29","v":"A.Umut  Fen "},{"$f":"IF(öğretmenler!H29=0,\"\",öğretmenler!H29)","v":""},50,{"$f":"öğretmenler!G54","v":"N.Alya  TDE"},{"$f":"IF(öğretmenler!H54=0,\"\",öğretmenler!H54)","v":""},25,"2022-07-15",null,24]
[null,null,"NÖBET TOPLAMI",null,null,{"$f":"SUM(D3:D27)+SUM(G3:G27)","v":25},null,26,"2022-07-16",null,25,{"$f":"CONCATENATE(M19,\" \",N25,\" \",M24,\" \",N23)","v":"28 Haziran 2022 Çarşamba"}]
[null,null,null,null,null,null,null,27,"2022-07-17",null,26]
[null,null,null,null,null,null,null,28,"2022-07-18",null,27]
[null,null,null,null,null,null,null,29,"2022-07-19",null,28]
[null,null,null,null,null,null,null,30,"2022-07-20",null,29]
[null,null,null,null,null,null,null,31,"2022-07-21",null,30]
[null,null,null,null,null,null,null,32,"2022-07-22",null,31]
[null,null,null,null,null,null,null,33,"2022-07-23"]
[null,null,null,null,null,null,null,34,"2022-07-24"]
[null,null,null,null,null,null,null,35,"2022-07-25"]
[null,null,null,null,null,null,null,36,"2022-07-26"]
[null,null,null,null,null,null,null,37,"2022-07-27"]
[null,null,null,null,null,null,null,38,"2022-07-28"]

{"sheet":"TaslakProgr.","index":3,"n_rows":47,"n_cols":11,"rows_kept":47,"cut":false,"hidden":true,"merged":[[33,2,34,2],[36,2,37,2],[39,2,40,2],[42,2,43,2],[45,2,46,2],[18,2,19,2],[21,2,22,2],[24,2,25,2],[27,2,28,2],[30,2,31,2],[3,2,4,2],[6,2,7,2],[9,2,10,2],[12,2,13,2],[15,2,16,2],[3,0,4,0],[3,1,4,1],[6,0,7,0],[6,1,7,1],[9,0,10,0],[9,1,10,1],[12,0,13,0],[12,1,13,1],[15,0,16,0],[15,1,16,1],[18,0,19,0],[18,1,19,1],[21,0,22,0],[21,1,22,1],[24,0,25,0],[24,1,25,1],[27,0,28,0],[27,1,28,1],[30,0,31,0],[30,1,31,1],[33,0,34,0],[33,1,34,1],[45,0,46,0],[45,1,46,1],[36,0,37,0],[36,1,37,1],[39,0,40,0],[39,1,40,1],[42,0,43,0],[42,1,43,1]]}
[4,null,null,null,null,null,null,null,null,null,{"$f":"INDEX(Tablo256[Kısa Adı ve Branşı],TaslakProgr.!$A$1,0)","v":"Ö.Yusuf  Kimy"}]
[null,null,null,"Günler",{"$f":"GİRİŞ!I13","v":"Pazartesi"},{"$f":"GİRİŞ!K13","v":"Salı"},{"$f":"GİRİŞ!M13","v":"Çarşamba"},{"$f":"GİRİŞ!O13","v":"Perşembe"},{"$f":"GİRİŞ!Q13","v":"Cuma"},{"$f":"GİRİŞ!S13","v":"Etüt/Deneme"},{"$f":"GİRİŞ!V13","v":"Ders Yok"}]
[null,null,null,"Nöb.\nYönetici","Nagihan ESKİPAZAR","Sefer YÜRÜK","Şeyma ÖZAYDIN","Nagihan ESKİPAZAR2","Sefer YÜRÜK2","Şeyma ÖZAYDIN2","Sefer YÜRÜK3"]
[1,{"$f":"IF(nöbetyerleri!C5=0,\"\",nöbetyerleri!C5)","v":"Nöbet Yeri 1"},1,{"$f":"IF(GİRİŞ!$L$11=2,\"TAM\",IF(GİRİŞ!$L$11=1,\"SABAH\"))","v":"SABAH"},null,null,"İ.Azra  Alma"]
[null,{"$f":"progbir","v":{"$error":"#REF!"}},null,{"$f":"IF(GİRİŞ!$L$11=2,\"TAM\",IF(GİRİŞ!$L$11=1,\"SABAH\"))","v":"SABAH"},null,"Ö.Yusuf  Kimy",null,null,"K.Ahmet  matA"]
[]
[{"$f":"A4+1","v":2},{"$f":"IF(nöbetyerleri!C6=0,\"\",nöbetyerleri!C6)","v":"Nöbet Yeri 2"},{"$f":"C4+1","v":2},{"$f":"'vt1'!P9","v":"SABAH"}]
[null,null,null,{"$f":"'vt1'!P10","v":"ÖĞLEN"},null,null,"E.Beyza  Coğr","K.Yağmur  Fen "]
[]
[{"$f":"A7+1","v":3},{"$f":"IF(nöbetyerleri!C7=0,\"\",nöbetyerleri!C7)","v":"Nöbet Yeri 3"},{"$f":"C7+1","v":3},{"$f":"'vt1'!P9","v":"SABAH"},null,null,null,"A.Ali  Resi","A.Asya  matA"]
[null,null,null,{"$f":"'vt1'!P10","v":"ÖĞLEN"},null,"A.Emirhan  TDE"]
[]
[{"$f":"A10+1","v":4},{"$f":"IF(nöbetyerleri!C8=0,\"\",nöbetyerleri!C8)","v":"Nöbet Yeri 4"},{"$f":"C10+1","v":4},{"$f":"'vt1'!P9","v":"SABAH"},null,null,null,null,"Y.Sümeyye  Tari"]
[null,null,null,{"$f":"'vt1'!P10","v":"ÖĞLEN"},null,"E.Burak  Türk"]
[]
[{"$f":"A13+1","v":5},{"$f":"IF(nöbetyerleri!C9=0,\"\",nöbetyerleri!C9)","v":"Nöbet Yeri 5"},{"$f":"IF(B16=\"\",\"\",LARGE(C$4:C14,1)+1)","v":5},{"$f":"'vt1'!P9","v":"SABAH"}]
[null,{"$f":"progbir","v":{"$error":"#REF!"}},null,{"$f":"'vt1'!P10","v":"ÖĞLEN"},null,"M.Mehmet  matT",null,"Ö.Yusuf  Kimy"]
[]
[{"$f":"A16+1","v":6},{"$f":"IF(nöbetyerleri!C10=0,\"\",nöbetyerleri!C10)","v":"Nöbet Yeri 4"},{"$f":"IF(B19=\"\",\"\",LARGE(C$4:C17,1)+1)","v":6},{"$f":"'vt1'!P9","v":"SABAH"},null,"Ö.Yusuf  Kimy","Ö.Mustafa  Mate"]
[null,null,null,{"$f":"'vt1'!P10","v":"ÖĞLEN"},null,"Ö.Yusuf  Kimy",null,null,"K.Ahmet  matA"]
[]
[{"$f":"A19+1","v":7},{"$f":"IF(nöbetyerleri!C11=0,\"\",nöbetyerleri!C11)","v":"Nöbet Yeri 5"},{"$f":"IF(B22=\"\",\"\",LARGE(C$4:C20,1)+1)","v":7},{"$f":"'vt1'!P9","v":"SABAH"}]
[null,{"$f":"progbir","v":{"$error":"#REF!"}},null,{"$f":"'vt1'!P10","v":"ÖĞLEN"},null,null,null,null,"U.Mert  Mate"]
[]
[{"$f":"A22+1","v":8},{"$f":"IF(nöbetyerleri!C12=0,\"\",nöbetyerleri!C12)","v":"Nöbet Yeri 4"},{"$f":"IF(B25=\"\",\"\",LARGE(C$4:C23,1)+1)","v":8},{"$f":"'vt1'!P9","v":"SABAH"}]
[null,null,null,{"$f":"'vt1'!P10","v":"ÖĞLEN"},null,"U.Mert  Mate"]
[]
[{"$f":"A25+1","v":9},{"$f":"IF(nöbetyerleri!C13=0,\"\",nöbetyerleri!C13)","v":"Nöbet Yeri 5"},{"$f":"IF(B28=\"\",\"\",LARGE(C$4:C26,1)+1)","v":9},{"$f":"'vt1'!P9","v":"SABAH"},null,"K.Yağmur  Fen "]
[null,{"$f":"progbir","v":{"$error":"#REF!"}},null,{"$f":"'vt1'!P10","v":"ÖĞLEN"},null,null,null,"K.Yağmur  Fen "]
[]
[{"$f":"A28+1","v":10},{"$f":"IF(nöbetyerleri!C14=0,\"\",nöbetyerleri!C14)","v":"Karşılama\nUğurlama"},{"$f":"IF(B31=\"\",\"\",LARGE(C$4:C29,1)+1)","v":10},{"$f":"'vt1'!P9","v":"SABAH"},null,"B.Eren  Sosy",null,null,"Ö.Yusuf  Kimy"]
[null,null,null,{"$f":"'vt1'!P10","v":"ÖĞLEN"},null,null,"M.Esma  Fizi","Z.Elif  Müzi","Ö.Yusuf  Kimy"]
[]
[{"$f":"A31+1","v":11},{"$f":"IF(nöbetyerleri!C15=0,\"\",nöbetyerleri!C15)","v":""},{"$f":"IF(B34=\"\",\"\",LARGE(C$4:C32,1)+1)","v":""},{"$f":"'vt1'!P9","v":"SABAH"}]
[null,{"$f":"progbir","v":{"$error":"#REF!"}},null,{"$f":"'vt1'!P10","v":"ÖĞLEN"}]
[]
[{"$f":"A34+1","v":12},{"$f":"IF(nöbetyerleri!C16=0,\"\",nöbetyerleri!C16)","v":""},{"$f":"IF(B37=\"\",\"\",LARGE(C$4:C35,1)+1)","v":""},{"$f":"'vt1'!P9","v":"SABAH"}]
[null,null,null,{"$f":"'vt1'!P10","v":"ÖĞLEN"}]
[]
[{"$f":"A37+1","v":13},{"$f":"IF(nöbetyerleri!C17=0,\"\",nöbetyerleri!C17)","v":""},{"$f":"IF(B40=\"\",\"\",LARGE(C$4:C38,1)+1)","v":""},{"$f":"'vt1'!P9","v":"SABAH"}]
[null,{"$f":"progbir","v":{"$error":"#REF!"}},null,{"$f":"'vt1'!P10","v":"ÖĞLEN"}]
[]
[{"$f":"A40+1","v":14},{"$f":"IF(nöbetyerleri!C18=0,\"\",nöbetyerleri!C18)","v":""},{"$f":"IF(B43=\"\",\"\",LARGE(C$4:C41,1)+1)","v":""},{"$f":"'vt1'!P9","v":"SABAH"}]
[null,null,null,{"$f":"'vt1'!P10","v":"ÖĞLEN"}]
[]
[{"$f":"A43+1","v":15},{"$f":"IF(nöbetyerleri!C19=0,\"\",nöbetyerleri!C19)","v":""},{"$f":"IF(B46=\"\",\"\",LARGE(C$4:C44,1)+1)","v":""},{"$f":"'vt1'!P9","v":"SABAH"}]
[null,{"$f":"progbir","v":{"$error":"#REF!"}},null,{"$f":"'vt1'!P10","v":"ÖĞLEN"}]

{"sheet":"yazdır5","index":4,"n_rows":30,"n_cols":11,"rows_kept":30,"cut":false,"hidden":true,"merged":[[0,1,0,8],[3,2,4,2],[6,2,7,2],[9,2,10,2],[12,2,13,2],[6,1,7,1],[12,1,13,1],[29,9,29,10],[15,2,16,2],[18,2,19,2],[21,2,22,2],[3,1,4,1],[9,1,10,1],[18,1,19,1],[21,1,22,1],[15,1,16,1],[25,9,25,10],[26,9,26,10],[27,9,27,10],[28,9,28,10]]}
[null,{"$f":"GİRİŞ!I7","v":"SINAV KİŞİSEL GELİŞİM KURSU AYLIK NÖBET ÇİZELGESİ"},null,null,null,null,null,null,null,"Başlama Tarihi:",{"$f":"'vt1'!I2","v":"2022-06-28"}]
[null,{"$f":"nöbetPlanAlanı","v":0},null,{"$f":"nöbetPlanAlanı","v":"Günler"},"Pazartesi","Salı","Çarşamba","Perşembe","Cuma","Etüt/Deneme","Ders Yok"]
[null,{"$f":"nöbetPlanAlanı","v":0},null,"Nöb.\nYönetici","Nagihan ESKİPAZAR","Sefer YÜRÜK","Şeyma ÖZAYDIN","Nagihan ESKİPAZAR2","Sefer YÜRÜK2","Şeyma ÖZAYDIN2","Sefer YÜRÜK3"]
[1,{"$f":"nöbetPlanAlanı","v":"Nöbet Yeri 1"},1,"SABAH",0,0,"İ.Azra  Alma",0,0,0,{"$f":"nöbetPlanAlanı","v":0}]
[null,{"$f":"NöbetGiriş1","v":{"$error":"#REF!"}},null,"SABAH",0,"Ö.Yusuf  Kimy",0,0,"K.Ahmet  matA",0,{"$f":"nöbetPlanAlanı","v":0}]
[]
[2,{"$f":"nöbetPlanAlanı","v":"Nöbet Yeri 2"},{"$f":"C4+1","v":2},{"$f":"nöbetPlanAlanı","v":"SABAH"},0,0,0,0,0,{"$f":"nöbetPlanAlanı","v":0},0]
[null,{"$error":"#REF!"},null,"ÖĞLEN",0,0,"E.Beyza  Coğr","K.Yağmur  Fen ",0,0,0]
[]
[3,{"$f":"nöbetPlanAlanı","v":"Nöbet Yeri 3"},{"$f":"C7+1","v":3},{"$f":"nöbetPlanAlanı","v":"SABAH"},0,0,0,"A.Ali  Resi","A.Asya  matA",0,0]
[null,{"$error":"#REF!"},null,"ÖĞLEN",0,"A.Emirhan  TDE",0,0,0,0,0]
[]
[4,{"$f":"nöbetPlanAlanı","v":"Nöbet Yeri 4"},{"$f":"C10+1","v":4},{"$f":"nöbetPlanAlanı","v":"SABAH"},0,0,0,0,"Y.Sümeyye  Tari",0,0]
[null,{"$error":"#REF!"},null,"ÖĞLEN",0,"E.Burak  Türk",0,0,0,0,0]
[]
[5,{"$f":"nöbetPlanAlanı","v":"Nöbet Yeri 5"},{"$f":"C13+1","v":5},{"$f":"nöbetPlanAlanı","v":"SABAH"},0,0,0,0,0,0,0]
[null,{"$error":"#REF!"},null,"ÖĞLEN",0,"M.Mehmet  matT",0,"Ö.Yusuf  Kimy",0,0,0]
[]
[6,{"$f":"nöbetPlanAlanı","v":"Nöbet Yeri 4"},{"$f":"C16+1","v":6},{"$f":"nöbetPlanAlanı","v":"SABAH"},0,"Ö.Yusuf  Kimy","Ö.Mustafa  Mate",0,0,0,0]
[null,{"$f":"NöbetGiriş1","v":{"$error":"#REF!"}},null,"ÖĞLEN",0,"Ö.Yusuf  Kimy",0,0,"K.Ahmet  matA",0,0]
[]
[7,{"$f":"nöbetPlanAlanı","v":"Nöbet Yeri 5"},{"$f":"C19+1","v":7},{"$f":"nöbetPlanAlanı","v":"SABAH"},0,0,0,0,0,0,0]
[null,{"$f":"NöbetGiriş1","v":{"$error":"#REF!"}},null,"ÖĞLEN",0,0,0,0,"U.Mert  Mate",0,0]
[null,"AÇIKLAMALAR"]
[1,"Nöbetçi öğretmen derslerden 15 dk önce okula gelir ve derslerin bitiminden 15 dk sonra okuldan ayrılır."]
[2,"Öğretmenlerin zamanında derse girip girmediklerini ve boş geçen sınıfları okul yönetimine bildirir.",null,null,null,null,null,null,null,{"$f":"'vt1'!I2","v":"2022-06-28"}]
[3,"İzinli olan veya herhangi bir nedenden dolayı derse gelmeyen öğretmenlerin yerine derse girerler."]
[4,"Eğitim ve öğretimini aksatacak hiçbir disiplinsizliğe izin vermez, aykırı davrananları yönetime bildirir."]
[5,"Öğretmenler nöbet yerlerinde bulunurlar, acil olmadığı sürece nöbet yerini terk etmezler.",null,null,null,null,null,null,null,{"$f":"yönetim!$D$5","v":"Nagihan ESKİPAZAR"}]
[6,"Okul müdürü veya yardımcıları tarafından verilecek görevleri yerine getirmekle sorumludur.",null,null,null,null,null,null,null,"Müdür"]

{"sheet":"yazdır10","index":5,"n_rows":46,"n_cols":11,"rows_kept":46,"cut":false,"hidden":true,"merged":[[0,1,0,8],[3,2,4,2],[6,2,7,2],[9,2,10,2],[12,2,13,2],[1,1,1,2],[2,1,2,2],[3,1,4,1],[9,1,10,1],[6,1,7,1],[12,1,13,1],[30,1,31,1],[33,1,34,1],[36,1,37,1],[15,1,16,1],[21,1,22,1],[18,1,19,1],[24,1,25,1],[27,1,28,1],[42,9,42,10],[43,9,43,10],[44,9,44,10],[45,9,45,10],[15,2,16,2],[18,2,19,2],[21,2,22,2],[24,2,25,2],[27,2,28,2],[30,2,31,2],[33,2,34,2],[36,2,37,2],[41,9,41,10]]}
[null,{"$f":"GİRİŞ!I7","v":"SINAV KİŞİSEL GELİŞİM KURSU AYLIK NÖBET ÇİZELGESİ"},null,null,null,null,null,null,null,"Başlama Tarihi:",{"$f":"'vt1'!I2","v":"2022-06-28"}]
[null,{"$f":"nöbetPlanAlanı","v":0},null,{"$f":"nöbetPlanAlanı","v":"Günler"},"Pazartesi","Salı","Çarşamba","Perşembe","Cuma","Etüt/Deneme","Ders Yok"]
[null,{"$f":"nöbetPlanAlanı","v":0},null,"Nöb.\nYönetici","Nagihan ESKİPAZAR","Sefer YÜRÜK","Şeyma ÖZAYDIN","Nagihan ESKİPAZAR2","Sefer YÜRÜK2","Şeyma ÖZAYDIN2","Sefer YÜRÜK3"]
[1,{"$f":"nöbetPlanAlanı","v":"Nöbet Yeri 1"},1,"SABAH",0,0,"İ.Azra  Alma",0,0,0,0]
[null,{"$f":"NöbetGiriş1","v":{"$error":"#REF!"}},null,"SABAH",0,"Ö.Yusuf  Kimy",0,0,"K.Ahmet  matA",0,0]
[]
[2,{"$f":"nöbetPlanAlanı","v":"Nöbet Yeri 2"},{"$f":"C4+1","v":2},{"$f":"nöbetPlanAlanı","v":"SABAH"},0,0,0,0,0,0,0]
[null,{"$error":"#REF!"},null,"ÖĞLEN",0,0,"E.Beyza  Coğr","K.Yağmur  Fen ",0,0,0]
[]
[3,{"$f":"nöbetPlanAlanı","v":"Nöbet Yeri 3"},{"$f":"C7+1","v":3},{"$f":"nöbetPlanAlanı","v":"SABAH"},0,0,0,"A.Ali  Resi","A.Asya  matA",0,0]
[null,{"$error":"#REF!"},null,"ÖĞLEN",0,"A.Emirhan  TDE",0,0,0,0,0]
[]
[4,{"$f":"nöbetPlanAlanı","v":"Nöbet Yeri 4"},{"$f":"C10+1","v":4},{"$f":"nöbetPlanAlanı","v":"SABAH"},0,0,0,0,"Y.Sümeyye  Tari",0,0]
[null,{"$error":"#REF!"},null,"ÖĞLEN",0,"E.Burak  Türk",0,0,0,0,0]
[]
[5,{"$f":"nöbetPlanAlanı","v":"Nöbet Yeri 5"},{"$f":"IF(B16=\"\",\"\",LARGE(C$4:C14,1)+1)","v":5},{"$f":"nöbetPlanAlanı","v":"SABAH"},0,0,0,0,0,0,0]
[null,{"$error":"#REF!"},null,"ÖĞLEN",0,"M.Mehmet  matT",0,"Ö.Yusuf  Kimy",0,0,0]
[]
[6,{"$f":"nöbetPlanAlanı","v":"Nöbet Yeri 4"},{"$f":"IF(B19=\"\",\"\",LARGE(C$4:C17,1)+1)","v":6},{"$f":"nöbetPlanAlanı","v":"SABAH"},0,"Ö.Yusuf  Kimy","Ö.Mustafa  Mate",0,0,0,0]
[null,{"$error":"#REF!"},null,"ÖĞLEN",0,"Ö.Yusuf  Kimy",0,0,"K.Ahmet  matA",0,0]
[]
[7,{"$f":"nöbetPlanAlanı","v":"Nöbet Yeri 5"},{"$f":"IF(B22=\"\",\"\",LARGE(C$4:C20,1)+1)","v":7},{"$f":"nöbetPlanAlanı","v":"SABAH"},0,0,0,0,0,0,0]
[null,{"$f":"NöbetGiriş1","v":{"$error":"#REF!"}},null,"ÖĞLEN",0,0,0,0,"U.Mert  Mate",0,0]
[]
[8,{"$f":"nöbetPlanAlanı","v":"Nöbet Yeri 4"},{"$f":"IF(B25=\"\",\"\",LARGE(C$4:C23,1)+1)","v":8},{"$f":"nöbetPlanAlanı","v":"SABAH"},0,0,0,0,0,0,0]
[null,{"$f":"NöbetGiriş1","v":{"$error":"#REF!"}},null,"ÖĞLEN",0,"U.Mert  Mate",0,0,0,0,0]
[]
[9,{"$f":"nöbetPlanAlanı","v":"Nöbet Yeri 5"},{"$f":"IF(B28=\"\",\"\",LARGE(C$4:C26,1)+1)","v":9},{"$f":"nöbetPlanAlanı","v":"SABAH"},0,"K.Yağmur  Fen ",0,0,0,0,0]
[null,{"$f":"NöbetGiriş1","v":{"$error":"#REF!"}},null,"ÖĞLEN",0,0,0,"K.Yağmur  Fen ",0,0,0]
[]
[10,{"$f":"nöbetPlanAlanı","v":"Karşılama\nUğurlama"},{"$f":"IF(B31=\"\",\"\",LARGE(C$4:C29,1)+1)","v":10},{"$f":"nöbetPlanAlanı","v":"SABAH"},0,"B.Eren  Sosy",0,0,"Ö.Yusuf  Kimy",0,0]
[null,{"$f":"NöbetGiriş1","v":{"$error":"#REF!"}},null,"ÖĞLEN",0,0,"M.Esma  Fizi","Z.Elif  Müzi","Ö.Yusuf  Kimy",0,0]
[]
[11,{"$f":"nöbetPlanAlanı","v":""},{"$f":"IF(B34=\"\",\"\",LARGE(C$4:C32,1)+1)","v":""},{"$f":"nöbetPlanAlanı","v":"SABAH"},0,0,0,0,0,0,0]
[null,{"$f":"NöbetGiriş1","v":{"$error":"#REF!"}},null,"ÖĞLEN",0,0,0,0,0,0,0]
[]
[12,{"$f":"nöbetPlanAlanı","v":""},{"$f":"IF(B37=\"\",\"\",LARGE(C$4:C35,1)+1)","v":""},{"$f":"nöbetPlanAlanı","v":"SABAH"},0,0,0,0,0,0,0]
[null,{"$f":"NöbetGiriş1","v":{"$error":"#REF!"}},null,"ÖĞLEN",0,0,0,0,0,0,0]
[]
[null,"AÇIKLAMALAR"]
[1,"Nöbetçi öğretmen derslerden 15 dk önce okula gelir ve derslerin bitiminden 15 dk sonra okuldan ayrılır."]
[2,"Öğretmenlerin zamanında derse girip girmediklerini ve boş geçen sınıfları okul yönetimine bildirir.",null,null,null,null,null,null,null,{"$f":"'vt1'!I18","v":"2022-07-06"}]
[3,"İzinli olan veya herhangi bir nedenden dolayı derse gelmeyen öğretmenlerin yerine derse girerler."]
[4,"Eğitim ve öğretimini aksatacak hiçbir disiplinsizliğe izin vermez, aykırı davrananları yönetime bildirir."]
[5,"Öğretmenler nöbet yerlerinde bulunurlar, acil olmadığı sürece nöbet yerini terk etmezler.",null,null,null,null,null,null,null,{"$f":"yönetim!$D$5","v":"Nagihan ESKİPAZAR"}]
[6,"Okul müdürü veya yardımcıları tarafından verilecek görevleri yerine getirmekle sorumludur.",null,null,null,null,null,null,null,"Müdür"]

{"sheet":"yazdır15","index":6,"n_rows":54,"n_cols":11,"rows_kept":54,"cut":false,"hidden":true,"merged":[[30,2,31,2],[33,2,34,2],[36,2,37,2],[39,2,40,2],[42,2,43,2],[0,1,0,8],[3,2,4,2],[6,2,7,2],[9,2,10,2],[12,2,13,2],[1,1,1,2],[2,1,2,2],[15,2,16,2],[18,2,19,2],[21,2,22,2],[24,2,25,2],[27,2,28,2],[30,1,31,1],[3,1,4,1],[6,1,7,1],[9,1,10,1],[12,1,13,1],[15,1,16,1],[18,1,19,1],[21,1,22,1],[24,1,25,1],[27,1,28,1],[53,9,53,10],[33,1,34,1],[36,1,37,1],[39,1,40,1],[42,1,43,1],[45,1,46,1],[45,2,46,2],[49,9,49,10],[50,9,50,10],[51,9,51,10],[52,9,52,10]]}
[null,{"$f":"GİRİŞ!I7","v":"SINAV KİŞİSEL GELİŞİM KURSU AYLIK NÖBET ÇİZELGESİ"},null,null,null,null,null,null,null,"Başlama Tarihi:",{"$f":"'vt1'!I2","v":"2022-06-28"}]
[null,{"$f":"nöbetPlanAlanı","v":0},null,{"$f":"nöbetPlanAlanı","v":"Günler"},"Pazartesi","Salı","Çarşamba","Perşembe","Cuma","Etüt/Deneme","Ders Yok"]
[null,{"$f":"nöbetPlanAlanı","v":0},null,"Nöb.\nYönetici","Nagihan ESKİPAZAR","Sefer YÜRÜK","Şeyma ÖZAYDIN","Nagihan ESKİPAZAR2","Sefer YÜRÜK2","Şeyma ÖZAYDIN2","Sefer YÜRÜK3"]
[1,{"$f":"nöbetPlanAlanı","v":"Nöbet Yeri 1"},1,"SABAH",0,0,"İ.Azra  Alma",0,0,0,0]
[null,{"$f":"NöbetGiriş1","v":{"$error":"#REF!"}},null,"SABAH",0,"Ö.Yusuf  Kimy",0,0,"K.Ahmet  matA",0,0]
[]
[2,{"$f":"nöbetPlanAlanı","v":"Nöbet Yeri 2"},{"$f":"C4+1","v":2},{"$f":"nöbetPlanAlanı","v":"SABAH"},0,0,0,0,0,0,0]
[null,{"$error":"#REF!"},null,"ÖĞLEN",0,0,"E.Beyza  Coğr","K.Yağmur  Fen ",0,0,0]
[]
[3,{"$f":"nöbetPlanAlanı","v":"Nöbet Yeri 3"},{"$f":"C7+1","v":3},{"$f":"nöbetPlanAlanı","v":"SABAH"},0,0,0,"A.Ali  Resi","A.Asya  matA",0,0]
[null,{"$error":"#REF!"},null,"ÖĞLEN",0,"A.Emirhan  TDE",0,0,0,0,0]
[]
[4,{"$f":"nöbetPlanAlanı","v":"Nöbet Yeri 4"},{"$f":"C10+1","v":4},{"$f":"nöbetPlanAlanı","v":"SABAH"},0,0,0,0,"Y.Sümeyye  Tari",0,0]
[null,{"$error":"#REF!"},null,"ÖĞLEN",0,"E.Burak  Türk",0,0,0,0,0]
[]
[5,{"$f":"nöbetPlanAlanı","v":"Nöbet Yeri 5"},{"$f":"C13+1","v":5},{"$f":"nöbetPlanAlanı","v":"SABAH"},0,0,0,0,0,0,0]
[null,{"$error":"#REF!"},null,"ÖĞLEN",0,"M.Mehmet  matT",0,"Ö.Yusuf  Kimy",0,0,0]
[]
[6,{"$f":"nöbetPlanAlanı","v":"Nöbet Yeri 4"},{"$f":"C16+1","v":6},{"$f":"nöbetPlanAlanı","v":"SABAH"},0,"Ö.Yusuf  Kimy","Ö.Mustafa  Mate",0,0,0,0]
[null,{"$error":"#REF!"},null,"ÖĞLEN",0,"Ö.Yusuf  Kimy",0,0,"K.Ahmet  matA",0,0]
[]
[7,{"$f":"nöbetPlanAlanı","v":"Nöbet Yeri 5"},{"$f":"C19+1","v":7},{"$f":"nöbetPlanAlanı","v":"SABAH"},0,0,0,0,0,0,0]
[null,{"$f":"NöbetGiriş1","v":{"$error":"#REF!"}},null,"ÖĞLEN",0,0,0,0,"U.Mert  Mate",0,0]
[]
[8,{"$f":"nöbetPlanAlanı","v":"Nöbet Yeri 4"},{"$f":"C22+1","v":8},{"$f":"nöbetPlanAlanı","v":"SABAH"},0,0,0,0,0,0,0]
[null,{"$f":"NöbetGiriş1","v":{"$error":"#REF!"}},null,"ÖĞLEN",0,"U.Mert  Mate",0,0,0,0,0]
[]
[9,{"$f":"nöbetPlanAlanı","v":"Nöbet Yeri 5"},{"$f":"C25+1","v":9},{"$f":"nöbetPlanAlanı","v":"SABAH"},0,"K.Yağmur  Fen ",0,0,0,0,0]
[null,{"$f":"NöbetGiriş1","v":{"$error":"#REF!"}},null,"ÖĞLEN",0,0,0,"K.Yağmur  Fen ",0,0,0]
[]
[10,{"$f":"nöbetPlanAlanı","v":"Karşılama\nUğurlama"},{"$f":"C28+1","v":10},{"$f":"nöbetPlanAlanı","v":"SABAH"},0,"B.Eren  Sosy",0,0,"Ö.Yusuf  Kimy",0,0]
[null,{"$f":"NöbetGiriş1","v":{"$error":"#REF!"}},null,"ÖĞLEN",0,0,"M.Esma  Fizi","Z.Elif  Müzi","Ö.Yusuf  Kimy",0,0]
[]
[11,{"$f":"nöbetPlanAlanı","v":""},{"$f":"C31+1","v":11},{"$f":"nöbetPlanAlanı","v":"SABAH"},0,0,0,0,0,0,0]
[null,{"$f":"NöbetGiriş1","v":{"$error":"#REF!"}},null,"ÖĞLEN",0,0,0,0,0,0,0]
[]
[12,{"$f":"nöbetPlanAlanı","v":""},{"$f":"C34+1","v":12},{"$f":"nöbetPlanAlanı","v":"SABAH"},0,0,0,0,0,0,0]
[null,{"$f":"NöbetGiriş1","v":{"$error":"#REF!"}},null,"ÖĞLEN",0,0,0,0,0,0,0]
[]
[13,{"$f":"nöbetPlanAlanı","v":""},{"$f":"C37+1","v":13},{"$f":"nöbetPlanAlanı","v":"SABAH"},0,0,0,0,0,0,0]
[null,{"$f":"NöbetGiriş1","v":{"$error":"#REF!"}},null,"ÖĞLEN",0,0,0,0,0,0,0]
[]
[14,{"$f":"nöbetPlanAlanı","v":""},{"$f":"C40+1","v":14},{"$f":"nöbetPlanAlanı","v":"SABAH"},0,0,0,0,0,0,0]
[null,{"$f":"NöbetGiriş1","v":{"$error":"#REF!"}},null,"ÖĞLEN",0,0,0,0,0,0,0]
[]
[15,{"$f":"nöbetPlanAlanı","v":""},{"$f":"C43+1","v":15},{"$f":"nöbetPlanAlanı","v":"SABAH"},0,0,0,0,0,0,0]
[null,{"$f":"NöbetGiriş1","v":{"$error":"#REF!"}},null,"ÖĞLEN",0,0,0,0,0,0,0]
[null,"AÇIKLAMALAR"]
[1,"Nöbetçi öğretmen derslerden 15 dk önce okula gelir ve derslerin bitiminden 15 dk sonra okuldan ayrılır."]
[2,"Öğretmenlerin zamanında derse girip girmediklerini ve boş geçen sınıfları okul yönetimine bildirir.",null,null,null,null,null,null,null,{"$f":"'vt1'!I26","v":"2022-07-14"}]
[3,"İzinli olan veya herhangi bir nedenden dolayı derse gelmeyen öğretmenlerin yerine derse girerler."]
[4,"Eğitim ve öğretimini aksatacak hiçbir disiplinsizliğe izin vermez, aykırı davrananları yönetime bildirir."]
[5,"Öğretmenler nöbet yerlerinde bulunurlar, acil olmadığı sürece nöbet yerini terk etmezler.",null,null,null,null,null,null,null,{"$f":"yönetim!$D$5","v":"Nagihan ESKİPAZAR"}]
[6,"Okul müdürü veya yardımcıları tarafından verilecek görevleri yerine getirmekle sorumludur.",null,null,null,null,null,null,null,"Müdür"]

{"sheet":"yönetim","index":10,"n_rows":16,"n_cols":4,"rows_kept":16,"cut":false,"hidden":true,"merged":[]}
[]
[]
[null,"KURUM BİLGİLERİ"]
[null,"Sıra No","Pozisyonu","Adı Soyadı"]
[null,1,"Müdür","Nagihan ESKİPAZAR"]
[null,{"$f":"IF(Tablo25[[#This Row],[Pozisyonu]]=0,\"\",IF(LEN(Tablo25[[#This Row],[Pozisyonu]])>1,(LARGE($B$5:B5,1)+1),\"\"))","v":2},"Müdür Baş Yardımcısı","Sefer YÜRÜK"]
[null,{"$f":"IF(Tablo25[[#This Row],[Pozisyonu]]=0,\"\",IF(LEN(Tablo25[[#This Row],[Pozisyonu]])>1,(LARGE($B$5:B6,1)+1),\"\"))","v":3},"Müdür Yardımcısı 2"]
[null,{"$f":"IF(Tablo25[[#This Row],[Pozisyonu]]=0,\"\",IF(LEN(Tablo25[[#This Row],[Pozisyonu]])>1,(LARGE($B$5:B7,1)+1),\"\"))","v":4},"Yerleşke Müdürü"]
[null,{"$f":"IF(Tablo25[[#This Row],[Pozisyonu]]=0,\"\",IF(LEN(Tablo25[[#This Row],[Pozisyonu]])>1,(LARGE($B$5:B8,1)+1),\"\"))","v":5},"Koordinatör"]
[null,{"$f":"IF(Tablo25[[#This Row],[Pozisyonu]]=0,\"\",IF(LEN(Tablo25[[#This Row],[Pozisyonu]])>1,(LARGE($B$5:B9,1)+1),\"\"))","v":6},"PDR (Rehberlik)","Şeyma ÖZAYDIN"]
[null,{"$f":"IF(Tablo25[[#This Row],[Pozisyonu]]=0,\"\",IF(LEN(Tablo25[[#This Row],[Pozisyonu]])>1,(LARGE($B$5:B10,1)+1),\"\"))","v":7},"(Diğer)"]
[null,{"$f":"IF(Tablo25[[#This Row],[Pozisyonu]]=0,\"\",IF(LEN(Tablo25[[#This Row],[Pozisyonu]])>1,(LARGE($B$5:B11,1)+1),\"\"))","v":""}]
[null,{"$f":"IF(Tablo25[[#This Row],[Pozisyonu]]=0,\"\",IF(LEN(Tablo25[[#This Row],[Pozisyonu]])>1,(LARGE($B$5:B12,1)+1),\"\"))","v":""}]
[null,{"$f":"IF(Tablo25[[#This Row],[Pozisyonu]]=0,\"\",IF(LEN(Tablo25[[#This Row],[Pozisyonu]])>1,(LARGE($B$5:B13,1)+1),\"\"))","v":""}]
[null,{"$f":"IF(Tablo25[[#This Row],[Pozisyonu]]=0,\"\",IF(LEN(Tablo25[[#This Row],[Pozisyonu]])>1,(LARGE($B$5:B14,1)+1),\"\"))","v":""}]
[null,{"$f":"IF(Tablo25[[#This Row],[Pozisyonu]]=0,\"\",IF(LEN(Tablo25[[#This Row],[Pozisyonu]])>1,(LARGE($B$5:B15,1)+1),\"\"))","v":""}]

{"sheet":"nöbetyerleri","index":11,"n_rows":19,"n_cols":4,"rows_kept":19,"cut":false,"hidden":true,"merged":[]}
[]
[]
[null,"NÖBET LANLARI"]
[null,"Sıra No","Nöbet Yeri Tanımı","Açıklama"]
[null,"Nöbet Yeri 1","Nöbet Yeri 1"]
[null,"Nöbet Yeri 2","Nöbet Yeri 2"]
[null,"Nöbet Yeri 3","Nöbet Yeri 3"]
[null,"Nöbet Yeri 4","Nöbet Yeri 4"]
[null,"Nöbet Yeri 5","Nöbet Yeri 5"]
[null,"Nöbet Yeri 6","Nöbet Yeri 4"]
[null,"Nöbet Yeri 7","Nöbet Yeri 5"]
[null,"Nöbet Yeri 8","Nöbet Yeri 4"]
[null,"Nöbet Yeri 9","Nöbet Yeri 5"]
[null,"Nöbet Yeri 10","Karşılama\nUğurlama","Güvenlik, halkla ilişkiler, yönetici veya nöbetçi öğretmenler…"]
[null,"Nöbet Yeri 11"]
[null,"Nöbet Yeri 12"]
[null,"Nöbet Yeri 13"]
[null,"Nöbet Yeri 14"]
[null,"Nöbet Yeri 15"]

{"sheet":"öğretmenler","index":12,"n_rows":54,"n_cols":8,"rows_kept":54,"cut":false,"hidden":true,"merged":[]}
[]
[]
[null,"KURUM BİLGİLERİ"]
[null,"Sıra No","Adı","Soyadı","Branşı","Tam Adı","Kısa Adı ve Branşı","Görev\nSayısı"]
[1,1,"Yusuf","Sümeyye","Tarih",{"$f":"CONCATENATE(Tablo256[[#This Row],[Adı]],\" \",Tablo256[[#This Row],[Soyadı]])","v":"Yusuf Sümeyye"},{"$f":"CONCATENATE(LEFT(Tablo256[[#This Row],[Adı]],1),\".\",LEFT(Tablo256[[#This Row],[Soyadı]],7),\"  \",LEFT(Tablo256[[#This Row],[Branşı]],4))","v":"Y.Sümeyye  Tari"},{"$f":"COUNTIF(TaslakProgr.!D$2:K$47,Tablo256[[#This Row],[Kısa Adı ve Branşı]])","v":1}]
[2,{"$f":"IF(Tablo256[[#This Row],[Adı]]=0,\"\",IF(LEN(Tablo256[[#This Row],[Adı]])>1,(LARGE($B$5:B5,1)+1),\"\"))","v":2},"Eymen","Beyza","Coğrafya",{"$f":"CONCATENATE(Tablo256[[#This Row],[Adı]],\" \",Tablo256[[#This Row],[Soyadı]])","v":"Eymen Beyza"},{"$f":"CONCATENATE(LEFT(Tablo256[[#This Row],[Adı]],1),\".\",LEFT(Tablo256[[#This Row],[Soyadı]],7),\"  \",LEFT(Tablo256[[#This Row],[Branşı]],4))","v":"E.Beyza  Coğr"},{"$f":"COUNTIF(TaslakProgr.!D$2:K$47,Tablo256[[#This Row],[Kısa Adı ve Branşı]])","v":1}]
[3,{"$f":"IF(Tablo256[[#This Row],[Adı]]=0,\"\",IF(LEN(Tablo256[[#This Row],[Adı]])>1,(LARGE($B$5:B6,1)+1),\"\"))","v":3},"Miraç","Esma","Fizik",{"$f":"CONCATENATE(Tablo256[[#This Row],[Adı]],\" \",Tablo256[[#This Row],[Soyadı]])","v":"Miraç Esma"},{"$f":"CONCATENATE(LEFT(Tablo256[[#This Row],[Adı]],1),\".\",LEFT(Tablo256[[#This Row],[Soyadı]],7),\"  \",LEFT(Tablo256[[#This Row],[Branşı]],4))","v":"M.Esma  Fizi"},{"$f":"COUNTIF(TaslakProgr.!D$2:K$47,Tablo256[[#This Row],[Kısa Adı ve Branşı]])","v":1}]
[4,{"$f":"IF(Tablo256[[#This Row],[Adı]]=0,\"\",IF(LEN(Tablo256[[#This Row],[Adı]])>1,(LARGE($B$5:B7,1)+1),\"\"))","v":4},"ÖmerAsaf","Yusuf","Kimya",{"$f":"CONCATENATE(Tablo256[[#This Row],[Adı]],\" \",Tablo256[[#This Row],[Soyadı]])","v":"ÖmerAsaf Yusuf"},{"$f":"CONCATENATE(LEFT(Tablo256[[#This Row],[Adı]],1),\".\",LEFT(Tablo256[[#This Row],[Soyadı]],7),\"  \",LEFT(Tablo256[[#This Row],[Branşı]],4))","v":"Ö.Yusuf  Kimy"},{"$f":"COUNTIF(TaslakProgr.!D$2:K$47,Tablo256[[#This Row],[Kısa Adı ve Branşı]])","v":6}]
[5,{"$f":"IF(Tablo256[[#This Row],[Adı]]=0,\"\",IF(LEN(Tablo256[[#This Row],[Adı]])>1,(LARGE($B$5:B8,1)+1),\"\"))","v":5},"Ömer","Mustafa","Matematik",{"$f":"CONCATENATE(Tablo256[[#This Row],[Adı]],\" \",Tablo256[[#This Row],[Soyadı]])","v":"Ömer Mustafa"},{"$f":"CONCATENATE(LEFT(Tablo256[[#This Row],[Adı]],1),\".\",LEFT(Tablo256[[#This Row],[Soyadı]],7),\"  \",LEFT(Tablo256[[#This Row],[Branşı]],4))","v":"Ö.Mustafa  Mate"},{"$f":"COUNTIF(TaslakProgr.!D$2:K$47,Tablo256[[#This Row],[Kısa Adı ve Branşı]])","v":1}]
[6,{"$f":"IF(Tablo256[[#This Row],[Adı]]=0,\"\",IF(LEN(Tablo256[[#This Row],[Adı]])>1,(LARGE($B$5:B9,1)+1),\"\"))","v":6},"Mustafa","Mehmet","matTYT",{"$f":"CONCATENATE(Tablo256[[#This Row],[Adı]],\" \",Tablo256[[#This Row],[Soyadı]])","v":"Mustafa Mehmet"},{"$f":"CONCATENATE(LEFT(Tablo256[[#This Row],[Adı]],1),\".\",LEFT(Tablo256[[#This Row],[Soyadı]],7),\"  \",LEFT(Tablo256[[#This Row],[Branşı]],4))","v":"M.Mehmet  matT"},{"$f":"COUNTIF(TaslakProgr.!D$2:K$47,Tablo256[[#This Row],[Kısa Adı ve Branşı]])","v":1}]
[7,{"$f":"IF(Tablo256[[#This Row],[Adı]]=0,\"\",IF(LEN(Tablo256[[#This Row],[Adı]])>1,(LARGE($B$5:B10,1)+1),\"\"))","v":7},"Kerem","Ahmet","matAYT",{"$f":"CONCATENATE(Tablo256[[#This Row],[Adı]],\" \",Tablo256[[#This Row],[Soyadı]])","v":"Kerem Ahmet"},{"$f":"CONCATENATE(LEFT(Tablo256[[#This Row],[Adı]],1),\".\",LEFT(Tablo256[[#This Row],[Soyadı]],7),\"  \",LEFT(Tablo256[[#This Row],[Branşı]],4))","v":"K.Ahmet  matA"},{"$f":"COUNTIF(TaslakProgr.!D$2:K$47,Tablo256[[#This Row],[Kısa Adı ve Branşı]])","v":2}]
[8,{"$f":"IF(Tablo256[[#This Row],[Adı]]=0,\"\",IF(LEN(Tablo256[[#This Row],[Adı]])>1,(LARGE($B$5:B11,1)+1),\"\"))","v":8},"Miran","Ömer","Sosyal Bilgl",{"$f":"CONCATENATE(Tablo256[[#This Row],[Adı]],\" \",Tablo256[[#This Row],[Soyadı]])","v":"Miran Ömer"},{"$f":"CONCATENATE(LEFT(Tablo256[[#This Row],[Adı]],1),\".\",LEFT(Tablo256[[#This Row],[Soyadı]],7),\"  \",LEFT(Tablo256[[#This Row],[Branşı]],4))","v":"M.Ömer  Sosy"},{"$f":"COUNTIF(TaslakProgr.!D$2:K$47,Tablo256[[#This Row],[Kısa Adı ve Branşı]])","v":0}]
[9,{"$f":"IF(Tablo256[[#This Row],[Adı]]=0,\"\",IF(LEN(Tablo256[[#This Row],[Adı]])>1,(LARGE($B$5:B12,1)+1),\"\"))","v":9},"Hamza","Berat","Fen Bilimleri",{"$f":"CONCATENATE(Tablo256[[#This Row],[Adı]],\" \",Tablo256[[#This Row],[Soyadı]])","v":"Hamza Berat"},{"$f":"CONCATENATE(LEFT(Tablo256[[#This Row],[Adı]],1),\".\",LEFT(Tablo256[[#This Row],[Soyadı]],7),\"  \",LEFT(Tablo256[[#This Row],[Branşı]],4))","v":"H.Berat  Fen "},{"$f":"COUNTIF(TaslakProgr.!D$2:K$47,Tablo256[[#This Row],[Kısa Adı ve Branşı]])","v":0}]
[10,{"$f":"IF(Tablo256[[#This Row],[Adı]]=0,\"\",IF(LEN(Tablo256[[#This Row],[Adı]])>1,(LARGE($B$5:B13,1)+1),\"\"))","v":10},"Ahmet","Muhammed","Biyoloji",{"$f":"CONCATENATE(Tablo256[[#This Row],[Adı]],\" \",Tablo256[[#This Row],[Soyadı]])","v":"Ahmet Muhammed"},{"$f":"CONCATENATE(LEFT(Tablo256[[#This Row],[Adı]],1),\".\",LEFT(Tablo256[[#This Row],[Soyadı]],7),\"  \",LEFT(Tablo256[[#This Row],[Branşı]],4))","v":"A.Muhamme  Biyo"},{"$f":"COUNTIF(TaslakProgr.!D$2:K$47,Tablo256[[#This Row],[Kısa Adı ve Branşı]])","v":0}]
[11,{"$f":"IF(Tablo256[[#This Row],[Adı]]=0,\"\",IF(LEN(Tablo256[[#This Row],[Adı]])>1,(LARGE($B$5:B14,1)+1),\"\"))","v":11},"Mehmet","Furkan","Türkçe",{"$f":"CONCATENATE(Tablo256[[#This Row],[Adı]],\" \",Tablo256[[#This Row],[Soyadı]])","v":"Mehmet Furkan"},{"$f":"CONCATENATE(LEFT(Tablo256[[#This Row],[Adı]],1),\".\",LEFT(Tablo256[[#This Row],[Soyadı]],7),\"  \",LEFT(Tablo256[[#This Row],[Branşı]],4))","v":"M.Furkan  Türk"},{"$f":"COUNTIF(TaslakProgr.!D$2:K$47,Tablo256[[#This Row],[Kısa Adı ve Branşı]])","v":0}]
[12,{"$f":"IF(Tablo256[[#This Row],[Adı]]=0,\"\",IF(LEN(Tablo256[[#This Row],[Adı]])>1,(LARGE($B$5:B15,1)+1),\"\"))","v":12},"Ali","Emirhan","TDE",{"$f":"CONCATENATE(Tablo256[[#This Row],[Adı]],\" \",Tablo256[[#This Row],[Soyadı]])","v":"Ali Emirhan"},{"$f":"CONCATENATE(LEFT(Tablo256[[#This Row],[Adı]],1),\".\",LEFT(Tablo256[[#This Row],[Soyadı]],7),\"  \",LEFT(Tablo256[[#This Row],[Branşı]],4))","v":"A.Emirhan  TDE"},{"$f":"COUNTIF(TaslakProgr.!D$2:K$47,Tablo256[[#This Row],[Kısa Adı ve Branşı]])","v":1}]
[13,{"$f":"IF(Tablo256[[#This Row],[Adı]]=0,\"\",IF(LEN(Tablo256[[#This Row],[Adı]])>1,(LARGE($B$5:B16,1)+1),\"\"))","v":13},"Emir","Enes","Müzik",{"$f":"CONCATENATE(Tablo256[[#This Row],[Adı]],\" \",Tablo256[[#This Row],[Soyadı]])","v":"Emir Enes"},{"$f":"CONCATENATE(LEFT(Tablo256[[#This Row],[Adı]],1),\".\",LEFT(Tablo256[[#This Row],[Soyadı]],7),\"  \",LEFT(Tablo256[[#This Row],[Branşı]],4))","v":"E.Enes  Müzi"},{"$f":"COUNTIF(TaslakProgr.!D$2:K$47,Tablo256[[#This Row],[Kısa Adı ve Branşı]])","v":0}]
[14,{"$f":"IF(Tablo256[[#This Row],[Adı]]=0,\"\",IF(LEN(Tablo256[[#This Row],[Adı]])>1,(LARGE($B$5:B17,1)+1),\"\"))","v":14},"Ali As af","Ali","Resim",{"$f":"CONCATENATE(Tablo256[[#This Row],[Adı]],\" \",Tablo256[[#This Row],[Soyadı]])","v":"Ali As af Ali"},{"$f":"CONCATENATE(LEFT(Tablo256[[#This Row],[Adı]],1),\".\",LEFT(Tablo256[[#This Row],[Soyadı]],7),\"  \",LEFT(Tablo256[[#This Row],[Branşı]],4))","v":"A.Ali  Resi"},{"$f":"COUNTIF(TaslakProgr.!D$2:K$47,Tablo256[[#This Row],[Kısa Adı ve Branşı]])","v":1}]
[15,{"$f":"IF(Tablo256[[#This Row],[Adı]]=0,\"\",IF(LEN(Tablo256[[#This Row],[Adı]])>1,(LARGE($B$5:B18,1)+1),\"\"))","v":15},"Muhammed Ali","Arda","İngilizce",{"$f":"CONCATENATE(Tablo256[[#This Row],[Adı]],\" \",Tablo256[[#This Row],[Soyadı]])","v":"Muhammed Ali Arda"},{"$f":"CONCATENATE(LEFT(Tablo256[[#This Row],[Adı]],1),\".\",LEFT(Tablo256[[#This Row],[Soyadı]],7),\"  \",LEFT(Tablo256[[#This Row],[Branşı]],4))","v":"M.Arda  İngi"},{"$f":"COUNTIF(TaslakProgr.!D$2:K$47,Tablo256[[#This Row],[Kısa Adı ve Branşı]])","v":0}]
[16,{"$f":"IF(Tablo256[[#This Row],[Adı]]=0,\"\",IF(LEN(Tablo256[[#This Row],[Adı]])>1,(LARGE($B$5:B19,1)+1),\"\"))","v":16},"Yiğit","İbrahim","Almanca",{"$f":"CONCATENATE(Tablo256[[#This Row],[Adı]],\" \",Tablo256[[#This Row],[Soyadı]])","v":"Yiğit İbrahim"},{"$f":"CONCATENATE(LEFT(Tablo256[[#This Row],[Adı]],1),\".\",LEFT(Tablo256[[#This Row],[Soyadı]],7),\"  \",LEFT(Tablo256[[#This Row],[Branşı]],4))","v":"Y.İbrahim  Alma"},{"$f":"COUNTIF(TaslakProgr.!D$2:K$47,Tablo256[[#This Row],[Kısa Adı ve Branşı]])","v":0}]
[17,{"$f":"IF(Tablo256[[#This Row],[Adı]]=0,\"\",IF(LEN(Tablo256[[#This Row],[Adı]])>1,(LARGE($B$5:B20,1)+1),\"\"))","v":17},"Muhammed","Hüseyin","Tarih",{"$f":"CONCATENATE(Tablo256[[#This Row],[Adı]],\" \",Tablo256[[#This Row],[Soyadı]])","v":"Muhammed Hüseyin"},{"$f":"CONCATENATE(LEFT(Tablo256[[#This Row],[Adı]],1),\".\",LEFT(Tablo256[[#This Row],[Soyadı]],7),\"  \",LEFT(Tablo256[[#This Row],[Branşı]],4))","v":"M.Hüseyin  Tari"},{"$f":"COUNTIF(TaslakProgr.!D$2:K$47,Tablo256[[#This Row],[Kısa Adı ve Branşı]])","v":0}]
[18,{"$f":"IF(Tablo256[[#This Row],[Adı]]=0,\"\",IF(LEN(Tablo256[[#This Row],[Adı]])>1,(LARGE($B$5:B21,1)+1),\"\"))","v":18},"Alparslan","Emir","Coğrafya",{"$f":"CONCATENATE(Tablo256[[#This Row],[Adı]],\" \",Tablo256[[#This Row],[Soyadı]])","v":"Alparslan Emir"},{"$f":"CONCATENATE(LEFT(Tablo256[[#This Row],[Adı]],1),\".\",LEFT(Tablo256[[#This Row],[Soyadı]],7),\"  \",LEFT(Tablo256[[#This Row],[Branşı]],4))","v":"A.Emir  Coğr"},{"$f":"COUNTIF(TaslakProgr.!D$2:K$47,Tablo256[[#This Row],[Kısa Adı ve Branşı]])","v":0}]
[19,{"$f":"IF(Tablo256[[#This Row],[Adı]]=0,\"\",IF(LEN(Tablo256[[#This Row],[Adı]])>1,(LARGE($B$5:B22,1)+1),\"\"))","v":19},"Çınar","Yunus Emre","Fizik",{"$f":"CONCATENATE(Tablo256[[#This Row],[Adı]],\" \",Tablo256[[#This Row],[Soyadı]])","v":"Çınar Yunus Emre"},{"$f":"CONCATENATE(LEFT(Tablo256[[#This Row],[Adı]],1),\".\",LEFT(Tablo256[[#This Row],[Soyadı]],7),\"  \",LEFT(Tablo256[[#This Row],[Branşı]],4))","v":"Ç.Yunus E  Fizi"},{"$f":"COUNTIF(TaslakProgr.!D$2:K$47,Tablo256[[#This Row],[Kısa Adı ve Branşı]])","v":0}]
[20,{"$f":"IF(Tablo256[[#This Row],[Adı]]=0,\"\",IF(LEN(Tablo256[[#This Row],[Adı]])>1,(LARGE($B$5:B23,1)+1),\"\"))","v":20},"Araş","Emre","Kimya",{"$f":"CONCATENATE(Tablo256[[#This Row],[Adı]],\" \",Tablo256[[#This Row],[Soyadı]])","v":"Araş Emre"},{"$f":"CONCATENATE(LEFT(Tablo256[[#This Row],[Adı]],1),\".\",LEFT(Tablo256[[#This Row],[Soyadı]],7),\"  \",LEFT(Tablo256[[#This Row],[Branşı]],4))","v":"A.Emre  Kimy"},{"$f":"COUNTIF(TaslakProgr.!D$2:K$47,Tablo256[[#This Row],[Kısa Adı ve Branşı]])","v":0}]
[21,{"$f":"IF(Tablo256[[#This Row],[Adı]]=0,\"\",IF(LEN(Tablo256[[#This Row],[Adı]])>1,(LARGE($B$5:B24,1)+1),\"\"))","v":21},"Umut","Mert","Matematik",{"$f":"CONCATENATE(Tablo256[[#This Row],[Adı]],\" \",Tablo256[[#This Row],[Soyadı]])","v":"Umut Mert"},{"$f":"CONCATENATE(LEFT(Tablo256[[#This Row],[Adı]],1),\".\",LEFT(Tablo256[[#This Row],[Soyadı]],7),\"  \",LEFT(Tablo256[[#This Row],[Branşı]],4))","v":"U.Mert  Mate"},{"$f":"COUNTIF(TaslakProgr.!D$2:K$47,Tablo256[[#This Row],[Kısa Adı ve Branşı]])","v":2}]
[22,{"$f":"IF(Tablo256[[#This Row],[Adı]]=0,\"\",IF(LEN(Tablo256[[#This Row],[Adı]])>1,(LARGE($B$5:B25,1)+1),\"\"))","v":22},"Alperen","Haşan","matTYT",{"$f":"CONCATENATE(Tablo256[[#This Row],[Adı]],\" \",Tablo256[[#This Row],[Soyadı]])","v":"Alperen Haşan"},{"$f":"CONCATENATE(LEFT(Tablo256[[#This Row],[Adı]],1),\".\",LEFT(Tablo256[[#This Row],[Soyadı]],7),\"  \",LEFT(Tablo256[[#This Row],[Branşı]],4))","v":"A.Haşan  matT"},{"$f":"COUNTIF(TaslakProgr.!D$2:K$47,Tablo256[[#This Row],[Kısa Adı ve Branşı]])","v":0}]
[23,{"$f":"IF(Tablo256[[#This Row],[Adı]]=0,\"\",IF(LEN(Tablo256[[#This Row],[Adı]])>1,(LARGE($B$5:B26,1)+1),\"\"))","v":23},"Ayaz","Kerem","matAYT",{"$f":"CONCATENATE(Tablo256[[#This Row],[Adı]],\" \",Tablo256[[#This Row],[Soyadı]])","v":"Ayaz Kerem"},{"$f":"CONCATENATE(LEFT(Tablo256[[#This Row],[Adı]],1),\".\",LEFT(Tablo256[[#This Row],[Soyadı]],7),\"  \",LEFT(Tablo256[[#This Row],[Branşı]],4))","v":"A.Kerem  matA"},{"$f":"COUNTIF(TaslakProgr.!D$2:K$47,Tablo256[[#This Row],[Kısa Adı ve Branşı]])","v":0}]
[24,{"$f":"IF(Tablo256[[#This Row],[Adı]]=0,\"\",IF(LEN(Tablo256[[#This Row],[Adı]])>1,(LARGE($B$5:B27,1)+1),\"\"))","v":24},"Berat","Eren","Sosyal Bilgl",{"$f":"CONCATENATE(Tablo256[[#This Row],[Adı]],\" \",Tablo256[[#This Row],[Soyadı]])","v":"Berat Eren"},{"$f":"CONCATENATE(LEFT(Tablo256[[#This Row],[Adı]],1),\".\",LEFT(Tablo256[[#This Row],[Soyadı]],7),\"  \",LEFT(Tablo256[[#This Row],[Branşı]],4))","v":"B.Eren  Sosy"},{"$f":"COUNTIF(TaslakProgr.!D$2:K$47,Tablo256[[#This Row],[Kısa Adı ve Branşı]])","v":1}]
[25,{"$f":"IF(Tablo256[[#This Row],[Adı]]=0,\"\",IF(LEN(Tablo256[[#This Row],[Adı]])>1,(LARGE($B$5:B28,1)+1),\"\"))","v":25},"Alparslan","Umut","Fen Bilimleri",{"$f":"CONCATENATE(Tablo256[[#This Row],[Adı]],\" \",Tablo256[[#This Row],[Soyadı]])","v":"Alparslan Umut"},{"$f":"CONCATENATE(LEFT(Tablo256[[#This Row],[Adı]],1),\".\",LEFT(Tablo256[[#This Row],[Soyadı]],7),\"  \",LEFT(Tablo256[[#This Row],[Branşı]],4))","v":"A.Umut  Fen "},{"$f":"COUNTIF(TaslakProgr.!D$2:K$47,Tablo256[[#This Row],[Kısa Adı ve Branşı]])","v":0}]
[26,{"$f":"IF(Tablo256[[#This Row],[Adı]]=0,\"\",IF(LEN(Tablo256[[#This Row],[Adı]])>1,(LARGE($B$5:B29,1)+1),\"\"))","v":26},"Zeynep","Eymen","Biyoloji",{"$f":"CONCATENATE(Tablo256[[#This Row],[Adı]],\" \",Tablo256[[#This Row],[Soyadı]])","v":"Zeynep Eymen"},{"$f":"CONCATENATE(LEFT(Tablo256[[#This Row],[Adı]],1),\".\",LEFT(Tablo256[[#This Row],[Soyadı]],7),\"  \",LEFT(Tablo256[[#This Row],[Branşı]],4))","v":"Z.Eymen  Biyo"},{"$f":"COUNTIF(TaslakProgr.!D$2:K$47,Tablo256[[#This Row],[Kısa Adı ve Branşı]])","v":0}]
[27,{"$f":"IF(Tablo256[[#This Row],[Adı]]=0,\"\",IF(LEN(Tablo256[[#This Row],[Adı]])>1,(LARGE($B$5:B30,1)+1),\"\"))","v":27},"Elif","Burak","Türkçe",{"$f":"CONCATENATE(Tablo256[[#This Row],[Adı]],\" \",Tablo256[[#This Row],[Soyadı]])","v":"Elif Burak"},{"$f":"CONCATENATE(LEFT(Tablo256[[#This Row],[Adı]],1),\".\",LEFT(Tablo256[[#This Row],[Soyadı]],7),\"  \",LEFT(Tablo256[[#This Row],[Branşı]],4))","v":"E.Burak  Türk"},{"$f":"COUNTIF(TaslakProgr.!D$2:K$47,Tablo256[[#This Row],[Kısa Adı ve Branşı]])","v":1}]
[28,{"$f":"IF(Tablo256[[#This Row],[Adı]]=0,\"\",IF(LEN(Tablo256[[#This Row],[Adı]])>1,(LARGE($B$5:B31,1)+1),\"\"))","v":28},"Yağmur","Zeynep","TDE",{"$f":"CONCATENATE(Tablo256[[#This Row],[Adı]],\" \",Tablo256[[#This Row],[Soyadı]])","v":"Yağmur Zeynep"},{"$f":"CONCATENATE(LEFT(Tablo256[[#This Row],[Adı]],1),\".\",LEFT(Tablo256[[#This Row],[Soyadı]],7),\"  \",LEFT(Tablo256[[#This Row],[Branşı]],4))","v":"Y.Zeynep  TDE"},{"$f":"COUNTIF(TaslakProgr.!D$2:K$47,Tablo256[[#This Row],[Kısa Adı ve Branşı]])","v":0}]
[29,{"$f":"IF(Tablo256[[#This Row],[Adı]]=0,\"\",IF(LEN(Tablo256[[#This Row],[Adı]])>1,(LARGE($B$5:B32,1)+1),\"\"))","v":29},"Zehra","Elif","Müzik",{"$f":"CONCATENATE(Tablo256[[#This Row],[Adı]],\" \",Tablo256[[#This Row],[Soyadı]])","v":"Zehra Elif"},{"$f":"CONCATENATE(LEFT(Tablo256[[#This Row],[Adı]],1),\".\",LEFT(Tablo256[[#This Row],[Soyadı]],7),\"  \",LEFT(Tablo256[[#This Row],[Branşı]],4))","v":"Z.Elif  Müzi"},{"$f":"COUNTIF(TaslakProgr.!D$2:K$47,Tablo256[[#This Row],[Kısa Adı ve Branşı]])","v":1}]
[30,{"$f":"IF(Tablo256[[#This Row],[Adı]]=0,\"\",IF(LEN(Tablo256[[#This Row],[Adı]])>1,(LARGE($B$5:B33,1)+1),\"\"))","v":30},"Ecrin","Defne","Resim",{"$f":"CONCATENATE(Tablo256[[#This Row],[Adı]],\" \",Tablo256[[#This Row],[Soyadı]])","v":"Ecrin Defne"},{"$f":"CONCATENATE(LEFT(Tablo256[[#This Row],[Adı]],1),\".\",LEFT(Tablo256[[#This Row],[Soyadı]],7),\"  \",LEFT(Tablo256[[#This Row],[Branşı]],4))","v":"E.Defne  Resi"},{"$f":"COUNTIF(TaslakProgr.!D$2:K$47,Tablo256[[#This Row],[Kısa Adı ve Branşı]])","v":0}]
[31,{"$f":"IF(Tablo256[[#This Row],[Adı]]=0,\"\",IF(LEN(Tablo256[[#This Row],[Adı]])>1,(LARGE($B$5:B34,1)+1),\"\"))","v":31},"Merve","Asel","İngilizce",{"$f":"CONCATENATE(Tablo256[[#This Row],[Adı]],\" \",Tablo256[[#This Row],[Soyadı]])","v":"Merve Asel"},{"$f":"CONCATENATE(LEFT(Tablo256[[#This Row],[Adı]],1),\".\",LEFT(Tablo256[[#This Row],[Soyadı]],7),\"  \",LEFT(Tablo256[[#This Row],[Branşı]],4))","v":"M.Asel  İngi"},{"$f":"COUNTIF(TaslakProgr.!D$2:K$47,Tablo256[[#This Row],[Kısa Adı ve Branşı]])","v":0}]
[32,{"$f":"IF(Tablo256[[#This Row],[Adı]]=0,\"\",IF(LEN(Tablo256[[#This Row],[Adı]])>1,(LARGE($B$5:B35,1)+1),\"\"))","v":32},"İrem","Azra","Almanca",{"$f":"CONCATENATE(Tablo256[[#This Row],[Adı]],\" \",Tablo256[[#This Row],[Soyadı]])","v":"İrem Azra"},{"$f":"CONCATENATE(LEFT(Tablo256[[#This Row],[Adı]],1),\".\",LEFT(Tablo256[[#This Row],[Soyadı]],7),\"  \",LEFT(Tablo256[[#This Row],[Branşı]],4))","v":"İ.Azra  Alma"},{"$f":"COUNTIF(TaslakProgr.!D$2:K$47,Tablo256[[#This Row],[Kısa Adı ve Branşı]])","v":1}]
[33,{"$f":"IF(Tablo256[[#This Row],[Adı]]=0,\"\",IF(LEN(Tablo256[[#This Row],[Adı]])>1,(LARGE($B$5:B36,1)+1),\"\"))","v":33},"Fatma","Eylül","Matematik",{"$f":"CONCATENATE(Tablo256[[#This Row],[Adı]],\" \",Tablo256[[#This Row],[Soyadı]])","v":"Fatma Eylül"},{"$f":"CONCATENATE(LEFT(Tablo256[[#This Row],[Adı]],1),\".\",LEFT(Tablo256[[#This Row],[Soyadı]],7),\"  \",LEFT(Tablo256[[#This Row],[Branşı]],4))","v":"F.Eylül  Mate"},{"$f":"COUNTIF(TaslakProgr.!D$2:K$47,Tablo256[[#This Row],[Kısa Adı ve Branşı]])","v":0}]
[34,{"$f":"IF(Tablo256[[#This Row],[Adı]]=0,\"\",IF(LEN(Tablo256[[#This Row],[Adı]])>1,(LARGE($B$5:B37,1)+1),\"\"))","v":34},"Meryem","Ebrar","matTYT",{"$f":"CONCATENATE(Tablo256[[#This Row],[Adı]],\" \",Tablo256[[#This Row],[Soyadı]])","v":"Meryem Ebrar"},{"$f":"CONCATENATE(LEFT(Tablo256[[#This Row],[Adı]],1),\".\",LEFT(Tablo256[[#This Row],[Soyadı]],7),\"  \",LEFT(Tablo256[[#This Row],[Branşı]],4))","v":"M.Ebrar  matT"},{"$f":"COUNTIF(TaslakProgr.!D$2:K$47,Tablo256[[#This Row],[Kısa Adı ve Branşı]])","v":0}]
[35,{"$f":"IF(Tablo256[[#This Row],[Adı]]=0,\"\",IF(LEN(Tablo256[[#This Row],[Adı]])>1,(LARGE($B$5:B38,1)+1),\"\"))","v":35},"Azra","Asya","matAYT",{"$f":"CONCATENATE(Tablo256[[#This Row],[Adı]],\" \",Tablo256[[#This Row],[Soyadı]])","v":"Azra Asya"},{"$f":"CONCATENATE(LEFT(Tablo256[[#This Row],[Adı]],1),\".\",LEFT(Tablo256[[#This Row],[Soyadı]],7),\"  \",LEFT(Tablo256[[#This Row],[Branşı]],4))","v":"A.Asya  matA"},{"$f":"COUNTIF(TaslakProgr.!D$2:K$47,Tablo256[[#This Row],[Kısa Adı ve Branşı]])","v":1}]
[36,{"$f":"IF(Tablo256[[#This Row],[Adı]]=0,\"\",IF(LEN(Tablo256[[#This Row],[Adı]])>1,(LARGE($B$5:B39,1)+1),\"\"))","v":36},"Rabia","Öykü","Matematik",{"$f":"CONCATENATE(Tablo256[[#This Row],[Adı]],\" \",Tablo256[[#This Row],[Soyadı]])","v":"Rabia Öykü"},{"$f":"CONCATENATE(LEFT(Tablo256[[#This Row],[Adı]],1),\".\",LEFT(Tablo256[[#This Row],[Soyadı]],7),\"  \",LEFT(Tablo256[[#This Row],[Branşı]],4))","v":"R.Öykü  Mate"},{"$f":"COUNTIF(TaslakProgr.!D$2:K$47,Tablo256[[#This Row],[Kısa Adı ve Branşı]])","v":0}]
[37,{"$f":"IF(Tablo256[[#This Row],[Adı]]=0,\"\",IF(LEN(Tablo256[[#This Row],[Adı]])>1,(LARGE($B$5:B40,1)+1),\"\"))","v":37},"Eylül","Ecrin","matTYT",{"$f":"CONCATENATE(Tablo256[[#This Row],[Adı]],\" \",Tablo256[[#This Row],[Soyadı]])","v":"Eylül Ecrin"},{"$f":"CONCATENATE(LEFT(Tablo256[[#This Row],[Adı]],1),\".\",LEFT(Tablo256[[#This Row],[Soyadı]],7),\"  \",LEFT(Tablo256[[#This Row],[Branşı]],4))","v":"E.Ecrin  matT"},{"$f":"COUNTIF(TaslakProgr.!D$2:K$47,Tablo256[[#This Row],[Kısa Adı ve Branşı]])","v":0}]
[38,{"$f":"IF(Tablo256[[#This Row],[Adı]]=0,\"\",IF(LEN(Tablo256[[#This Row],[Adı]])>1,(LARGE($B$5:B41,1)+1),\"\"))","v":38},"Büşra","Hiranur","matAYT",{"$f":"CONCATENATE(Tablo256[[#This Row],[Adı]],\" \",Tablo256[[#This Row],[Soyadı]])","v":"Büşra Hiranur"},{"$f":"CONCATENATE(LEFT(Tablo256[[#This Row],[Adı]],1),\".\",LEFT(Tablo256[[#This Row],[Soyadı]],7),\"  \",LEFT(Tablo256[[#This Row],[Branşı]],4))","v":"B.Hiranur  matA"},{"$f":"COUNTIF(TaslakProgr.!D$2:K$47,Tablo256[[#This Row],[Kısa Adı ve Branşı]])","v":0}]
[39,{"$f":"IF(Tablo256[[#This Row],[Adı]]=0,\"\",IF(LEN(Tablo256[[#This Row],[Adı]])>1,(LARGE($B$5:B42,1)+1),\"\"))","v":39},"Nisanur","Meryem","Türkçe",{"$f":"CONCATENATE(Tablo256[[#This Row],[Adı]],\" \",Tablo256[[#This Row],[Soyadı]])","v":"Nisanur Meryem"},{"$f":"CONCATENATE(LEFT(Tablo256[[#This Row],[Adı]],1),\".\",LEFT(Tablo256[[#This Row],[Soyadı]],7),\"  \",LEFT(Tablo256[[#This Row],[Branşı]],4))","v":"N.Meryem  Türk"},{"$f":"COUNTIF(TaslakProgr.!D$2:K$47,Tablo256[[#This Row],[Kısa Adı ve Branşı]])","v":0}]
[40,{"$f":"IF(Tablo256[[#This Row],[Adı]]=0,\"\",IF(LEN(Tablo256[[#This Row],[Adı]])>1,(LARGE($B$5:B43,1)+1),\"\"))","v":40},"Ayşe","Miray","TDE",{"$f":"CONCATENATE(Tablo256[[#This Row],[Adı]],\" \",Tablo256[[#This Row],[Soyadı]])","v":"Ayşe Miray"},{"$f":"CONCATENATE(LEFT(Tablo256[[#This Row],[Adı]],1),\".\",LEFT(Tablo256[[#This Row],[Soyadı]],7),\"  \",LEFT(Tablo256[[#This Row],[Branşı]],4))","v":"A.Miray  TDE"},{"$f":"COUNTIF(TaslakProgr.!D$2:K$47,Tablo256[[#This Row],[Kısa Adı ve Branşı]])","v":0}]
[41,{"$f":"IF(Tablo256[[#This Row],[Adı]]=0,\"\",IF(LEN(Tablo256[[#This Row],[Adı]])>1,(LARGE($B$5:B44,1)+1),\"\"))","v":41},"Hatice","Duru","Türkçe",{"$f":"CONCATENATE(Tablo256[[#This Row],[Adı]],\" \",Tablo256[[#This Row],[Soyadı]])","v":"Hatice Duru"},{"$f":"CONCATENATE(LEFT(Tablo256[[#This Row],[Adı]],1),\".\",LEFT(Tablo256[[#This Row],[Soyadı]],7),\"  \",LEFT(Tablo256[[#This Row],[Branşı]],4))","v":"H.Duru  Türk"},{"$f":"COUNTIF(TaslakProgr.!D$2:K$47,Tablo256[[#This Row],[Kısa Adı ve Branşı]])","v":0}]
[42,{"$f":"IF(Tablo256[[#This Row],[Adı]]=0,\"\",IF(LEN(Tablo256[[#This Row],[Adı]])>1,(LARGE($B$5:B45,1)+1),\"\"))","v":42},"Nehir","Zehra","TDE",{"$f":"CONCATENATE(Tablo256[[#This Row],[Adı]],\" \",Tablo256[[#This Row],[Soyadı]])","v":"Nehir Zehra"},{"$f":"CONCATENATE(LEFT(Tablo256[[#This Row],[Adı]],1),\".\",LEFT(Tablo256[[#This Row],[Soyadı]],7),\"  \",LEFT(Tablo256[[#This Row],[Branşı]],4))","v":"N.Zehra  TDE"},{"$f":"COUNTIF(TaslakProgr.!D$2:K$47,Tablo256[[#This Row],[Kısa Adı ve Branşı]])","v":0}]
[43,{"$f":"IF(Tablo256[[#This Row],[Adı]]=0,\"\",IF(LEN(Tablo256[[#This Row],[Adı]])>1,(LARGE($B$5:B46,1)+1),\"\"))","v":43},"Hiranur","Eşlem","Sosyal Bilgl",{"$f":"CONCATENATE(Tablo256[[#This Row],[Adı]],\" \",Tablo256[[#This Row],[Soyadı]])","v":"Hiranur Eşlem"},{"$f":"CONCATENATE(LEFT(Tablo256[[#This Row],[Adı]],1),\".\",LEFT(Tablo256[[#This Row],[Soyadı]],7),\"  \",LEFT(Tablo256[[#This Row],[Branşı]],4))","v":"H.Eşlem  Sosy"},{"$f":"COUNTIF(TaslakProgr.!D$2:K$47,Tablo256[[#This Row],[Kısa Adı ve Branşı]])","v":0}]
[44,{"$f":"IF(Tablo256[[#This Row],[Adı]]=0,\"\",IF(LEN(Tablo256[[#This Row],[Adı]])>1,(LARGE($B$5:B47,1)+1),\"\"))","v":44},"Emine","Nehir","Fen Bilimleri",{"$f":"CONCATENATE(Tablo256[[#This Row],[Adı]],\" \",Tablo256[[#This Row],[Soyadı]])","v":"Emine Nehir"},{"$f":"CONCATENATE(LEFT(Tablo256[[#This Row],[Adı]],1),\".\",LEFT(Tablo256[[#This Row],[Soyadı]],7),\"  \",LEFT(Tablo256[[#This Row],[Branşı]],4))","v":"E.Nehir  Fen "},{"$f":"COUNTIF(TaslakProgr.!D$2:K$47,Tablo256[[#This Row],[Kısa Adı ve Branşı]])","v":0}]
[45,{"$f":"IF(Tablo256[[#This Row],[Adı]]=0,\"\",IF(LEN(Tablo256[[#This Row],[Adı]])>1,(LARGE($B$5:B48,1)+1),\"\"))","v":45},"Defne","Zümra","Sosyal Bilgl",{"$f":"CONCATENATE(Tablo256[[#This Row],[Adı]],\" \",Tablo256[[#This Row],[Soyadı]])","v":"Defne Zümra"},{"$f":"CONCATENATE(LEFT(Tablo256[[#This Row],[Adı]],1),\".\",LEFT(Tablo256[[#This Row],[Soyadı]],7),\"  \",LEFT(Tablo256[[#This Row],[Branşı]],4))","v":"D.Zümra  Sosy"},{"$f":"COUNTIF(TaslakProgr.!D$2:K$47,Tablo256[[#This Row],[Kısa Adı ve Branşı]])","v":0}]
[46,{"$f":"IF(Tablo256[[#This Row],[Adı]]=0,\"\",IF(LEN(Tablo256[[#This Row],[Adı]])>1,(LARGE($B$5:B49,1)+1),\"\"))","v":46},"Kübra","Yağmur","Fen Bilimleri",{"$f":"CONCATENATE(Tablo256[[#This Row],[Adı]],\" \",Tablo256[[#This Row],[Soyadı]])","v":"Kübra Yağmur"},{"$f":"CONCATENATE(LEFT(Tablo256[[#This Row],[Adı]],1),\".\",LEFT(Tablo256[[#This Row],[Soyadı]],7),\"  \",LEFT(Tablo256[[#This Row],[Branşı]],4))","v":"K.Yağmur  Fen "},{"$f":"COUNTIF(TaslakProgr.!D$2:K$47,Tablo256[[#This Row],[Kısa Adı ve Branşı]])","v":3}]
[47,{"$f":"IF(Tablo256[[#This Row],[Adı]]=0,\"\",IF(LEN(Tablo256[[#This Row],[Adı]])>1,(LARGE($B$5:B50,1)+1),\"\"))","v":47},"Lina","İkra","İngilizce",{"$f":"CONCATENATE(Tablo256[[#This Row],[Adı]],\" \",Tablo256[[#This Row],[Soyadı]])","v":"Lina İkra"},{"$f":"CONCATENATE(LEFT(Tablo256[[#This Row],[Adı]],1),\".\",LEFT(Tablo256[[#This Row],[Soyadı]],7),\"  \",LEFT(Tablo256[[#This Row],[Branşı]],4))","v":"L.İkra  İngi"},{"$f":"COUNTIF(TaslakProgr.!D$2:K$47,Tablo256[[#This Row],[Kısa Adı ve Branşı]])","v":0}]
[48,{"$f":"IF(Tablo256[[#This Row],[Adı]]=0,\"\",IF(LEN(Tablo256[[#This Row],[Adı]])>1,(LARGE($B$5:B51,1)+1),\"\"))","v":48},"Alya","Ela","İngilizce",{"$f":"CONCATENATE(Tablo256[[#This Row],[Adı]],\" \",Tablo256[[#This Row],[Soyadı]])","v":"Alya Ela"},{"$f":"CONCATENATE(LEFT(Tablo256[[#This Row],[Adı]],1),\".\",LEFT(Tablo256[[#This Row],[Soyadı]],7),\"  \",LEFT(Tablo256[[#This Row],[Branşı]],4))","v":"A.Ela  İngi"},{"$f":"COUNTIF(TaslakProgr.!D$2:K$47,Tablo256[[#This Row],[Kısa Adı ve Branşı]])","v":0}]
[49,{"$f":"IF(Tablo256[[#This Row],[Adı]]=0,\"\",IF(LEN(Tablo256[[#This Row],[Adı]])>1,(LARGE($B$5:B52,1)+1),\"\"))","v":49},"Hatice","Lina","Türkçe",{"$f":"CONCATENATE(Tablo256[[#This Row],[Adı]],\" \",Tablo256[[#This Row],[Soyadı]])","v":"Hatice Lina"},{"$f":"CONCATENATE(LEFT(Tablo256[[#This Row],[Adı]],1),\".\",LEFT(Tablo256[[#This Row],[Soyadı]],7),\"  \",LEFT(Tablo256[[#This Row],[Branşı]],4))","v":"H.Lina  Türk"},{"$f":"COUNTIF(TaslakProgr.!D$2:K$47,Tablo256[[#This Row],[Kısa Adı ve Branşı]])","v":0}]
[50,{"$f":"IF(Tablo256[[#This Row],[Adı]]=0,\"\",IF(LEN(Tablo256[[#This Row],[Adı]])>1,(LARGE($B$5:B53,1)+1),\"\"))","v":50},"Nehir","Alya","TDE",{"$f":"CONCATENATE(Tablo256[[#This Row],[Adı]],\" \",Tablo256[[#This Row],[Soyadı]])","v":"Nehir Alya"},{"$f":"CONCATENATE(LEFT(Tablo256[[#This Row],[Adı]],1),\".\",LEFT(Tablo256[[#This Row],[Soyadı]],7),\"  \",LEFT(Tablo256[[#This Row],[Branşı]],4))","v":"N.Alya  TDE"},{"$f":"COUNTIF(TaslakProgr.!D$2:K$47,Tablo256[[#This Row],[Kısa Adı ve Branşı]])","v":0}]

{"sheet":"dersdoldur","index":13,"n_rows":5,"n_cols":7,"rows_kept":5,"cut":false,"hidden":true,"merged":[[2,1,2,4],[2,6,2,18]]}
[]
[]
[null,{"$f":"GİRİŞ!B5","v":"Kurumun Resmi Adı"},null,null,null,null,{"$f":"GİRİŞ!I5","v":"ÖZEL ÜSKÜDAR SINAV KİŞİSEL GELİŞİM KURSU"}]
[]
[null,null,null,"Bu sayfaya, boş geçen derslerle ilgili günlük görevlendirme tablosu eklenecektir."]

{"sheet":"gözetmen","index":14,"n_rows":6,"n_cols":7,"rows_kept":6,"cut":false,"hidden":true,"merged":[[2,1,2,4],[2,6,2,18]]}
[]
[]
[null,{"$f":"GİRİŞ!B5","v":"Kurumun Resmi Adı"},null,null,null,null,{"$f":"GİRİŞ!I5","v":"ÖZEL ÜSKÜDAR SINAV KİŞİSEL GELİŞİM KURSU"}]
[]
[]
[null,null,null,"Bu sayfaya; deneme sınavları yönergesi ile sınavlarda görevli gözetmen tablosu eklenecektir."]

{"sheet":"Sayfa1","index":15,"n_rows":9,"n_cols":8,"rows_kept":9,"cut":false,"hidden":true,"merged":[]}
[]
[]
[]
[]
[]
[]
[]
[]
[null,null,null,null,"Daha fazlası:",null,null,"Daha fazlası: www.iyiorneklerlisesi.com"]